bitfinex-derivatives/quotes_BTCF0:USTF0_20241125
["timestamp","ask_amount","ask_price","bid_price","bid_amount"]
[1732522261148,0.13792,98263.0,98262.0,0.18199916]
[1732522261345,0.13792,98263.0,98255.0,0.24259518]
[1732522261747,0.13792,98263.0,98262.0,0.18195782]
[1732522261946,0.13792,98263.0,98261.0,0.18195782]
[1732522262148,0.13792,98263.0,98262.0,0.18195782]
[1732522262454,0.13792,98263.0,98255.0,0.24259518]
[1732522262455,0.13792,98263.0,98256.0,0.24259518]
[1732522262751,0.13792,98263.0,98257.0,0.29342318]
[1732522262953,0.13792,98263.0,98258.0,0.24259518]
[1732522263150,0.13792,98263.0,98260.0,0.3608]
[1732522264663,0.13792,98263.0,98259.0,0.050827]
[1732522265257,0.13792,98263.0,98259.0,0.29342218]
[1732522265457,0.13792,98263.0,98259.0,0.050827]
[1732522265755,0.13792,98263.0,98259.0,0.29342218]
[1732522266458,0.13792,98262.0,98259.0,0.050827]
[1732522266656,0.13792,98261.0,98259.0,0.050827]
[1732522266952,0.13792,98261.0,98259.0,0.29342218]
[1732522267555,0.13792,98261.0,98260.0,0.24259518]
[1732522267744,0.12173895,98266.0,98260.0,0.24259518]
[1732522268053,0.050826,98262.0,98257.0,0.24259518]
[1732522268356,0.050826,98262.0,98252.0,0.3608]
[1732522268357,0.1218628,98260.0,98252.0,0.60339518]
[1732522268650,0.1218628,98260.0,98256.0,0.1820719]
[1732522268956,0.1218628,98261.0,98256.0,0.1820719]
[1732522269348,0.1218628,98260.0,98257.0,0.1820719]
[1732522269548,0.1218628,98261.0,98258.0,0.1820719]
[1732522270055,0.1218628,98260.0,98257.0,0.1820719]
[1732522270356,0.13792,98263.0,98258.0,0.1820719]
[1732522270357,0.1218628,98259.0,98258.0,0.1820719]
[1732522270743,0.2597828,98259.0,98258.0,0.1820719]
[1732522270949,0.13792,98259.0,98254.0,0.29342418]
[1732522271149,0.2597828,98259.0,98254.0,0.050829]
[1732522271345,0.1218628,98257.0,98256.0,0.050828]
[1732522271545,0.1218628,98258.0,98256.0,0.29342318]
[1732522271751,0.1218628,98257.0,98256.0,0.29342318]
[1732522271949,0.1218628,98258.0,98256.0,0.29342318]
[1732522272357,0.1218628,98258.0,98253.0,0.05083]
[1732522272551,0.1218628,98258.0,98257.0,0.050828]
[1732522273655,0.1218628,98259.0,98257.0,0.05400679]
[1732522273861,0.1218628,98259.0,98257.0,0.050828]
[1732522275653,0.1218628,98258.0,98257.0,0.050828]
[1732522278058,0.13792,98260.0,98259.0,0.050827]
[1732522278256,0.12196135,98260.0,98259.0,0.050827]
[1732522278452,0.1219631,98260.0,98259.0,0.050827]
[1732522278665,0.14136,98261.0,98259.0,0.050827]
[1732522278865,0.12196298,98260.0,98259.0,0.29370763]
[1732522279164,0.14136,98260.0,98259.0,0.050827]
[1732522280556,0.12196298,98263.0,98259.0,0.050827]
[1732522280852,0.12196298,98263.0,98262.0,0.3608]
[1732522281053,0.26332298,98263.0,98262.0,0.3608]
[1732522281759,0.050824,98266.0,98262.0,0.3608]
[1732522281965,0.14136,98265.0,98262.0,0.411625]
[1732522282170,0.14136,98264.0,98262.0,0.411625]
[1732522284662,0.192185,98264.0,98262.0,0.3608]
[1732522284860,0.3608,98263.0,98262.0,0.2428862]
[1732522285470,0.3608,98263.0,98256.0,0.2428862]
[1732522285471,0.050827,98259.0,98256.0,0.2428862]
[1732522285665,0.0621,98258.0,98256.0,0.2428862]
[1732522285861,0.0621,98258.0,98257.0,0.2428862]
[1732522286265,0.0621,98258.0,98256.0,0.2428862]
[1732522287180,0.0621,98258.0,98255.0,0.050829]
[1732522287478,0.12196068,98256.0,98255.0,0.050829]
[1732522289566,0.0621,98258.0,98254.0,0.2428862]
[1732522289774,0.050829,98256.0,98254.0,0.2428862]
[1732522291077,0.0621,98258.0,98256.0,0.050829]
[1732522291279,0.14136,98257.0,98256.0,0.2937152]
[1732522291477,0.26330132,98257.0,98256.0,0.050829]
[1732522291676,0.12194132,98257.0,98256.0,0.050829]
[1732522291875,0.12194132,98260.0,98259.0,0.050827]
[1732522292064,0.12194132,98261.0,98259.0,0.050827]
[1732522292676,0.12194132,98261.0,98260.0,0.3608]
[1732522292973,0.12194132,98262.0,98261.0,0.050826]
[1732522293375,0.14136,98263.0,98261.0,0.050826]
[1732522293574,0.14136,98263.0,98262.0,0.2428403]
[1732522293775,0.14136,98263.0,98261.0,0.2936663]
[1732522295479,0.14136,98263.0,98262.0,0.2428403]
[1732522295783,0.14136,98263.0,98261.0,0.2936663]
[1732522296371,0.14136,98263.0,98262.0,0.2428403]
[1732522301678,0.14136,98263.0,98261.0,0.050826]
[1732522303474,0.14136,98263.0,98260.0,0.3608]
[1732522303475,0.14136,98263.0,98262.0,0.050825]
[1732522304178,0.14136,98263.0,98262.0,0.29368627]
[1732522304385,0.14136,98263.0,98262.0,0.050825]
[1732522304890,0.26330132,98263.0,98262.0,0.050825]
[1732522305377,0.14136,98263.0,98262.0,0.050825]
[1732522305781,0.26330132,98263.0,98262.0,0.050825]
[1732522305984,0.14136,98263.0,98262.0,0.050825]
[1732522306190,0.26330132,98263.0,98262.0,0.050825]
[1732522306376,0.14136,98263.0,98262.0,0.050825]
[1732522306579,0.26330132,98263.0,98262.0,0.050825]
[1732522306785,0.12194132,98263.0,98262.0,0.050825]
[1732522309196,0.14136,98264.0,98260.0,0.60426127]
[1732522309493,0.14136,98264.0,98263.0,0.050825]
[1732522310493,0.14136,98264.0,98263.0,0.29368627]
[1732522310687,0.050825,98263.0,98262.0,0.24286127]
[1732522311894,0.14136,98264.0,98261.0,0.24286127]
[1732522312093,0.050826,98261.0,98259.0,0.24286127]
[1732522312288,0.050827,98260.0,98259.0,0.24286127]
[1732522312489,0.050827,98259.0,98257.0,0.24286127]
[1732522312688,0.0328,98262.0,98257.0,0.24286127]
[1732522312689,0.050828,98258.0,98257.0,0.24286127]
[1732522313085,0.050828,98257.0,98256.0,0.24286127]
[1732522313289,0.12194118,98258.0,98255.0,0.24286127]
[1732522313290,0.050829,98256.0,98255.0,0.24286127]
[1732522314795,0.17277037,98256.0,98254.0,0.24291741]
[1732522314994,0.12194137,98256.0,98254.0,0.24291741]
[1732522315193,0.050829,98255.0,98254.0,0.24291741]
[1732522316992,0.05083,98254.0,98252.0,0.60371741]
[1732522317202,0.19159,98253.0,98252.0,0.3608]
[1732522317398,0.31352986,98253.0,98252.0,0.3608]
[1732522318094,0.050831,98251.0,98249.0,0.03154237]
[1732522318396,0.050831,98251.0,98248.0,0.24291741]
[1732522318397,0.050832,98250.0,98248.0,0.24291741]
[1732522319398,0.050832,98250.0,98247.0,0.24291741]
[1732522319597,0.12194162,98251.0,98249.0,0.050832]
[1732522319802,0.12194162,98252.0,98249.0,0.050832]
[1732522320403,0.050831,98251.0,98249.0,0.050832]
[1732522321106,0.050831,98251.0,98249.0,0.29374941]
[1732522321409,0.050831,98251.0,98249.0,0.050832]
[1732522321793,0.14076,98250.0,98249.0,0.050832]
[1732522323300,0.191592,98250.0,98249.0,0.050832]
[1732522324605,0.0001,98251.0,98250.0,0.050832]
[1732522324898,0.14086,98251.0,98250.0,0.050832]
[1732522327709,0.14086,98251.0,98246.0,0.27477061]
[1732522328099,0.191691,98251.0,98246.0,0.0318532]
[1732522328299,0.14086,98251.0,98245.0,0.24291741]
[1732522328499,0.050834,98247.0,98245.0,0.24291741]
[1732522328706,0.050834,98247.0,98241.0,0.050836]
[1732522328707,0.050834,98247.0,98243.0,0.24291741]
[1732522329911,0.050834,98247.0,98241.0,0.08352586]
[1732522329912,0.050834,98247.0,98242.0,0.24291741]
[1732522330110,0.050834,98247.0,98243.0,0.24291741]
[1732522330409,0.12194162,98249.0,98245.0,0.24291741]
[1732522330803,0.17277362,98250.0,98246.0,0.050833]
[1732522331404,0.12194162,98249.0,98246.0,0.050833]
[1732522331808,0.17277362,98250.0,98246.0,0.29375041]
[1732522332112,0.12194162,98249.0,98246.0,0.050833]
[1732522332517,0.12194162,98249.0,98246.0,0.29375041]
[1732522332708,0.12194162,98249.0,98246.0,0.050833]
[1732522333011,0.050833,98248.0,98245.0,0.24291741]
[1732522333212,0.17277462,98248.0,98245.0,0.24291741]
[1732522333606,0.12194162,98249.0,98245.0,0.24291741]
[1732522333812,0.12188989,98247.0,98246.0,0.24291741]
[1732522334012,0.14086,98251.0,98241.0,0.03268986]
[1732522334013,0.12188989,98249.0,98241.0,0.03268986]
[1732522334319,0.12189301,98248.0,98247.0,0.29381941]
[1732522335708,0.1219005,98248.0,98247.0,0.2939127]
[1732522337012,0.14076,98249.0,98244.0,0.2430797]
[1732522337218,0.1219005,98248.0,98247.0,0.2430797]
[1732522337409,0.191592,98249.0,98247.0,0.2430797]
[1732522338717,0.191592,98249.0,98248.0,0.2430797]
[1732522340418,0.191592,98249.0,98243.0,0.050835]
[1732522340620,0.12196262,98246.0,98240.0,0.39351016]
[1732522340818,0.0914731,98242.0,98240.0,0.39351016]
[1732522341114,0.050835,98244.0,98240.0,0.39351016]
[1732522341308,0.17279762,98244.0,98240.0,0.39351016]
[1732522341514,0.12196262,98242.0,98240.0,0.39351016]
[1732522342113,0.12196262,98243.0,98240.0,0.39351016]
[1732522342722,0.12196262,98243.0,98240.0,0.44434716]
[1732522343917,0.12196262,98243.0,98241.0,0.050836]
[1732522346317,0.12196262,98242.0,98241.0,0.050836]
[1732522346524,0.12196262,98243.0,98241.0,0.050836]
[1732522346725,0.13158592,98242.0,98241.0,0.050836]
[1732522347320,0.0096233,98242.0,98241.0,0.050836]
[1732522347920,0.12196262,98243.0,98241.0,0.050836]
[1732522348426,0.12196262,98244.0,98241.0,0.050836]
[1732522348622,0.17279762,98244.0,98241.0,0.050836]
[1732522348813,0.13168703,98243.0,98241.0,0.050836]
[1732522349017,0.00972441,98242.0,98241.0,0.050836]
[1732522349218,0.13168703,98242.0,98241.0,0.050836]
[1732522349621,0.00972441,98242.0,98241.0,0.050836]
[1732522349817,0.13168703,98242.0,98241.0,0.050836]
[1732522351624,0.00972441,98242.0,98241.0,0.050836]
[1732522355533,0.00979314,98242.0,98241.0,0.050836]
[1732522358039,0.06062914,98242.0,98241.0,0.24357854]
[1732522358237,0.06062914,98242.0,98240.0,0.03271016]
[1732522358435,0.00979314,98241.0,98240.0,0.24357854]
[1732522358740,0.00979314,98241.0,98240.0,0.24355798]
[1732522359240,1.5097726,98241.0,98240.0,0.24355798]
[1732522359540,0.1477726,98241.0,98240.0,0.24352992]
[1732522360240,0.1477726,98241.0,98239.0,0.050837]
[1732522360437,0.0097726,98240.0,98239.0,0.050837]
[1732522361040,0.0097726,98240.0,98239.0,0.08214746]
[1732522363144,0.00954839,98240.0,98239.0,0.08214746]
[1732522364443,0.00954839,98240.0,98239.0,0.32562949]
[1732522365546,0.00954839,98240.0,98239.0,0.08214746]
[1732522367046,0.00994508,98240.0,98239.0,0.03131046]
[1732522367246,0.06078208,98240.0,98238.0,0.24339704]
[1732522367449,0.00994508,98239.0,98238.0,0.29423504]
[1732522368546,0.00994508,98239.0,98238.0,0.32586841]
[1732522368750,0.00994508,98239.0,98238.0,0.08247137]
[1732522369253,0.00994508,98239.0,98238.0,0.32586841]
[1732522369742,0.0099793,98239.0,98238.0,0.08247137]
[1732522370543,0.0099793,98239.0,98238.0,0.32586841]
[1732522371857,0.0099793,98239.0,98238.0,0.08247137]
[1732522372043,0.02615013,98239.0,98238.0,0.08247137]
[1732522374749,0.02615013,98239.0,98238.0,0.27503041]
[1732522374945,0.02615013,98239.0,98238.0,0.03163337]
[1732522375154,0.07698713,98239.0,98236.0,0.3608]
[1732522375346,0.02615013,98238.0,98236.0,0.3608]
[1732522375546,0.02615013,98237.0,98236.0,0.3608]
[1732522376754,0.02615013,98237.0,98236.0,0.39326816]
[1732522378561,0.02605922,98237.0,98236.0,0.39326816]
[1732522378956,0.01002278,98237.0,98236.0,0.39326816]
[1732522380964,0.0261919,98237.0,98236.0,0.39326816]
[1732522381553,0.02627539,98237.0,98236.0,0.44410716]
[1732522382254,0.1482784,98237.0,98236.0,0.44410716]
[1732522382653,0.02627539,98237.0,98236.0,0.44410716]
[1732522382861,0.02634369,98237.0,98236.0,0.39326816]
[1732522383056,0.02634369,98237.0,98236.0,0.44410716]
[1732522383256,0.14835286,98237.0,98236.0,0.44410716]
[1732522383556,0.02634369,98237.0,98236.0,0.75980301]
[1732522384767,0.09150522,98241.0,98240.0,0.050837]
[1732522384957,0.11849886,98241.0,98240.0,0.050837]
[1732522385357,0.02699364,98241.0,98240.0,0.050837]
[1732522386354,0.03708479,98241.0,98240.0,0.050837]
[1732522386856,0.03708479,98241.0,98240.0,0.02794726]
[1732522387862,0.03708479,98241.0,98240.0,0.27126716]
[1732522388051,0.03708479,98241.0,98240.0,0.02794726]
[1732522388252,0.03708479,98241.0,98240.0,0.27126818]
[1732522389068,0.03708479,98241.0,98240.0,0.02794726]
[1732522389565,0.02699364,98241.0,98240.0,0.2712684]
[1732522389865,0.02699364,98241.0,98240.0,0.02794726]
[1732522391054,0.11844854,98241.0,98240.0,0.02794726]
[1732522391261,0.02699364,98241.0,98240.0,0.02794726]
[1732522392158,0.06843965,98243.0,98240.0,0.64402405]
[1732522392359,0.0001,98251.0,98250.0,0.050832]
[1732522392559,0.0001,98251.0,98250.0,0.549592]
[1732522393153,0.0001,98251.0,98250.0,0.86160882]
[1732522393355,0.0001,98251.0,98250.0,0.86156772]
[1732522394355,0.0001,98251.0,98250.0,0.85309388]
[1732522394558,0.0001,98251.0,98250.0,1.16407636]
[1732522394857,0.0001,98251.0,98250.0,0.549592]
[1732522395060,0.0001,98251.0,98250.0,0.85309388]
[1732522395461,0.0001,98251.0,98250.0,0.549592]
[1732522397158,0.0001,98251.0,98250.0,0.58189945]
[1732522398864,0.0001,98251.0,98250.0,0.44393945]
[1732522399059,0.0001,98251.0,98250.0,0.58189945]
[1732522400558,0.0938,98277.0,98275.0,0.050819]
[1732522400758,0.0938,98277.0,98276.0,0.3608]
[1732522402463,0.10399399,98277.0,98276.0,0.3608]
[1732522403263,0.12022624,98277.0,98276.0,0.3608]
[1732522403467,0.12022639,98277.0,98276.0,0.3608]
[1732522404270,0.13063653,98277.0,98276.0,0.3608]
[1732522405073,0.13063653,98277.0,98276.0,0.39255268]
[1732522407179,0.10399414,98277.0,98276.0,0.39255268]
[1732522407471,0.1324001,98277.0,98276.0,0.39255268]
[1732522410674,0.13258983,98277.0,98276.0,0.39255268]
[1732522410969,0.13228917,98277.0,98276.0,0.39255268]
[1732522412171,0.00011441,98286.0,98276.0,0.6979382]
[1732522412372,0.00011441,98286.0,98285.0,0.411614]
[1732522413682,0.0159346,98286.0,98285.0,0.411614]
[1732522413871,0.00011441,98286.0,98285.0,0.411614]
[1732522415384,0.00011441,98286.0,98285.0,0.716854]
[1732522415974,0.00011441,98286.0,98285.0,0.89872506]
[1732522416276,0.00011441,98286.0,98285.0,0.716854]
[1732522421965,0.00011441,98286.0,98285.0,0.95934875]
[1732522422879,0.00011441,98286.0,98285.0,0.716854]
[1732522424173,0.01059942,98286.0,98285.0,0.716854]
[1732522424573,0.02092553,98286.0,98285.0,0.716854]
[1732522424771,0.02092553,98286.0,98285.0,0.854734]
[1732522425675,0.00011441,98286.0,98285.0,0.854734]
[1732522425880,0.01077906,98286.0,98285.0,0.854734]
[1732522426989,0.02121314,98286.0,98285.0,0.854734]
[1732522427187,0.02121314,98286.0,98285.0,1.09671834]
[1732522427483,0.03827658,98286.0,98285.0,1.09671834]
[1732522427780,0.03827658,98286.0,98285.0,0.95883834]
[1732522427982,0.05409297,98286.0,98285.0,1.09671834]
[1732522428184,0.05409297,98286.0,98285.0,0.854734]
[1732522428490,0.05409297,98286.0,98285.0,1.09671834]
[1732522428678,0.05409297,98286.0,98285.0,0.79147834]
[1732522428885,0.05409297,98286.0,98285.0,1.09671834]
[1732522429179,0.03949085,98286.0,98285.0,0.549494]
[1732522429376,0.03949085,98286.0,98285.0,0.411614]
[1732522429689,0.03949085,98286.0,98281.0,0.0591]
[1732522429690,0.050815,98282.0,98281.0,0.0591]
[1732522429980,0.050815,98282.0,98276.0,0.3926582]
[1732522429981,0.050817,98278.0,98276.0,0.36299054]
[1732522430187,0.0457309,98277.0,98276.0,0.36299054]
[1732522430381,0.03937644,98277.0,98276.0,0.33123786]
[1732522430784,0.02894236,98277.0,98276.0,0.33123786]
[1732522431085,0.03934955,98277.0,98276.0,0.33123786]
[1732522431886,0.34462955,98277.0,98264.0,0.3608]
[1732522432079,0.34462955,98277.0,98246.0,0.3608]
[1732522432080,0.3608,98273.0,98260.0,0.05869134]
[1732522432383,0.050826,98262.0,98260.0,0.05869134]
[1732522432580,0.03934955,98261.0,98260.0,0.050826]
[1732522432981,0.03915212,98261.0,98260.0,0.05090608]
[1732522433589,0.03915212,98261.0,98260.0,8.008e-05]
[1732522435586,0.02134144,98261.0,98260.0,8.008e-05]
[1732522436084,0.02043863,98261.0,98260.0,8.008e-05]
[1732522436677,0.02041137,98261.0,98260.0,8.008e-05]
[1732522436882,0.03696143,98261.0,98260.0,8.008e-05]
[1732522437083,0.0101825,98261.0,98260.0,8.008e-05]
[1732522437303,0.03696151,98261.0,98260.0,8.008e-05]
[1732522437482,0.02048212,98261.0,98260.0,8.008e-05]
[1732522440487,0.0101825,98261.0,98260.0,0.05090708]
[1732522440690,0.02035601,98261.0,98260.0,0.05090708]
[1732522441090,0.01017351,98261.0,98260.0,0.05090708]
[1732522441287,0.01017351,98261.0,98260.0,0.23266886]
[1732522441791,0.0158022,98277.0,98274.0,0.050819]
[1732522442088,0.0327,98279.0,98276.0,0.411618]
[1732522442089,0.0158022,98278.0,98276.0,0.411618]
[1732522442282,0.0327,98279.0,98278.0,0.050817]
[1732522442484,0.05877836,98279.0,98278.0,0.050817]
[1732522442680,0.04297616,98279.0,98278.0,0.050817]
[1732522443087,0.0103493,98279.0,98276.0,0.3608]
[1732522443390,0.0158022,98284.0,98282.0,0.050815]
[1732522443692,0.01034957,98283.0,98282.0,0.050815]
[1732522443993,0.01034957,98283.0,98277.0,0.050818]
[1732522444181,0.01034957,98282.0,98281.0,0.050816]
[1732522444380,0.00011441,98286.0,98285.0,0.050814]
[1732522445789,0.00011441,98286.0,98285.0,0.411614]
[1732522447800,0.01024093,98286.0,98285.0,0.411614]
[1732522447993,0.00011441,98286.0,98285.0,0.411614]
[1732522452797,0.00011441,98286.0,98285.0,0.3608]
[1732522452996,0.01028461,98286.0,98285.0,0.3608]
[1732522453907,0.02032745,98286.0,98285.0,0.3608]
[1732522455791,0.01015725,98286.0,98285.0,0.3608]
[1732522456402,0.04115725,98286.0,98285.0,0.3608]
[1732522456604,0.07365725,98286.0,98285.0,0.3608]
[1732522460999,0.43445725,98286.0,98276.0,0.00052]
[1732522461191,0.16163095,98285.0,98266.0,0.18159289]
[1732522461509,0.13153095,98284.0,98270.0,0.45019019]
[1732522461702,0.050815,98282.0,98279.0,0.050816]
[1732522461904,0.01004284,98281.0,98279.0,0.050816]
[1732522462107,1.551455,98282.0,98281.0,0.050816]
[1732522462404,1.50980328,98282.0,98281.0,0.050816]
[1732522462595,0.00980328,98282.0,98281.0,0.050816]
[1732522465298,0.00011441,98286.0,98285.0,0.050814]
[1732522465504,0.00995746,98286.0,98285.0,0.050814]
[1732522467602,0.12160252,98286.0,98285.0,0.050814]
[1732522468002,0.00011441,98286.0,98285.0,0.050814]
[1732522468507,0.12190873,98286.0,98285.0,0.050814]
[1732522469201,0.00011441,98286.0,98285.0,0.050814]
[1732522472110,0.13791441,98286.0,98285.0,0.050814]
[1732522472906,0.00011441,98286.0,98285.0,0.050814]
[1732522475814,0.00981854,98286.0,98285.0,0.050814]
[1732522479414,0.12187971,98297.0,98285.0,0.3608]
[1732522479624,0.22187971,98300.0,98296.0,0.3608]
[1732522479808,0.1,98300.0,98299.0,0.050806]
[1732522480809,0.1,98300.0,98299.0,0.23285214]
[1732522481010,0.1,98300.0,98299.0,0.23285112]
[1732522481306,0.1,98300.0,98299.0,0.050806]
[1732522482325,0.1,98300.0,98299.0,0.08270479]
[1732522482509,0.1,98300.0,98299.0,0.26469274]
[1732522482713,0.1,98300.0,98299.0,0.08270479]
[1732522483110,0.1,98300.0,98299.0,0.26467723]
[1732522484224,0.1,98300.0,98299.0,0.08270479]
[1732522484416,0.1,98300.0,98299.0,0.26467723]
[1732522484611,0.1,98300.0,98299.0,0.08270479]
[1732522485119,0.050806,98299.0,98295.0,0.23278044]
[1732522485417,0.050806,98299.0,98296.0,0.18197244]
[1732522485624,0.050806,98299.0,98293.0,0.3608]
[1732522485625,0.050808,98295.0,98293.0,0.3608]
[1732522485810,0.0304,98294.0,98293.0,0.3608]
[1732522486429,0.20308871,98294.0,98293.0,0.03205519]
[1732522486625,0.20308871,98294.0,98280.0,0.30148351]
[1732522486626,0.081209,98294.0,98281.0,0.18195015]
[1732522486814,0.050815,98283.0,98281.0,0.23276615]
[1732522487217,0.050815,98283.0,98281.0,0.050816]
[1732522487617,0.17255864,98289.0,98284.0,0.050814]
[1732522487824,0.050812,98288.0,98284.0,0.050814]
[1732522488526,0.050813,98286.0,98284.0,0.050814]
[1732522488921,0.050815,98282.0,98278.0,0.2328492]
[1732522489129,0.3608,98279.0,98273.0,0.1820322]
[1732522489312,0.050819,98274.0,98272.0,0.5428322]
[1732522489512,0.050819,98274.0,98272.0,0.3608]
[1732522490119,0.0313,98273.0,98272.0,0.3608]
[1732522490622,0.0313,98273.0,98269.0,0.1820322]
[1732522491211,0.0313,98273.0,98268.0,0.1820322]
[1732522491825,0.050821,98270.0,98268.0,0.1820322]
[1732522492120,0.13776,98269.0,98265.0,0.00152618]
[1732522492324,0.16946,98269.0,98265.0,0.00152618]
[1732522492519,0.050823,98266.0,98265.0,0.00152618]
[1732522494914,0.12167769,98270.0,98268.0,0.050822]
[1732522495117,0.13776,98269.0,98268.0,0.050822]
[1732522495319,0.0313,98273.0,98268.0,0.050822]
[1732522495618,0.050822,98270.0,98265.0,0.00152618]
[1732522496013,0.13776,98272.0,98265.0,0.00152618]
[1732522496523,0.050823,98268.0,98265.0,0.00152618]
[1732522496831,0.00969197,98267.0,98265.0,0.00152618]
[1732522497030,0.050823,98268.0,98265.0,0.00152618]
[1732522497031,0.00969197,98266.0,98265.0,0.00152618]
[1732522497628,0.06051497,98266.0,98265.0,0.00152618]
[1732522498927,0.050823,98266.0,98265.0,0.00152618]
[1732522499819,0.188583,98266.0,98265.0,0.00152618]
[1732522500428,0.050823,98266.0,98265.0,0.00152618]
[1732522500631,0.188583,98266.0,98265.0,0.00152618]
[1732522501933,0.19827586,98266.0,98265.0,0.00152618]
[1732522503332,0.19831586,98266.0,98265.0,0.00152618]
[1732522505226,0.50368313,98266.0,98265.0,0.00152618]
[1732522505422,0.050826,98261.0,98260.0,8.008e-05]
[1732522505628,0.06060613,98261.0,98260.0,8.008e-05]
[1732522505828,0.19840613,98261.0,98260.0,8.008e-05]
[1732522507837,0.188626,98261.0,98260.0,8.008e-05]
[1732522512533,0.27977356,98261.0,98260.0,8.008e-05]
[1732522513130,0.188626,98261.0,98260.0,8.008e-05]
[1732522517542,0.31030369,98261.0,98260.0,8.008e-05]
[1732522518240,0.188626,98261.0,98260.0,8.008e-05]
[1732522524344,0.188586,98261.0,98260.0,8.008e-05]
[1732522525734,0.188586,98261.0,98260.0,0.18235462]
[1732522526136,0.188586,98261.0,98260.0,8.008e-05]
[1732522526847,0.050826,98261.0,98260.0,8.008e-05]
[1732522527043,0.188586,98261.0,98260.0,8.008e-05]
[1732522528251,0.188586,98261.0,98260.0,0.18237014]
[1732522528847,0.188586,98261.0,98260.0,8.008e-05]
[1732522529343,0.188586,98261.0,98260.0,0.18237014]
[1732522529743,0.188586,98261.0,98260.0,8.008e-05]
[1732522530251,0.188586,98261.0,98260.0,0.18237014]
[1732522530544,0.188586,98261.0,98260.0,8.008e-05]
[1732522531242,0.34044614,98261.0,98260.0,8.008e-05]
[1732522531442,0.188586,98261.0,98260.0,8.008e-05]
[1732522531644,0.3410459,98261.0,98260.0,8.008e-05]
[1732522532055,0.188586,98261.0,98260.0,8.008e-05]
[1732522532554,0.3410459,98261.0,98260.0,0.18237014]
[1732522533456,0.188586,98261.0,98260.0,0.18237014]
[1732522533956,0.188586,98261.0,98254.0,0.24281169]
[1732522533957,0.54335023,98261.0,98257.0,0.18229006]
[1732522534256,0.54335023,98261.0,98244.0,0.30265483]
[1732522534257,0.04944423,98260.0,98244.0,0.18229006]
[1732522534458,0.20328148,98246.0,98244.0,0.03163227]
[1732522534651,0.188594,98245.0,98243.0,0.18229006]
[1732522534847,0.188594,98245.0,98237.0,0.24281169]
[1732522534848,0.050835,98244.0,98241.0,0.18229006]
[1732522535051,0.050835,98244.0,98242.0,0.18239624]
[1732522535249,0.050835,98244.0,98242.0,0.00010618]
[1732522535250,0.010234,98243.0,98242.0,0.00010618]
[1732522535756,0.050835,98244.0,98242.0,0.00010618]
[1732522535961,0.01022988,98243.0,98242.0,0.00010618]
[1732522537855,0.01988033,98243.0,98242.0,0.00010618]
[1732522538759,0.14173034,98243.0,98242.0,0.00010618]
[1732522538947,0.01988033,98243.0,98242.0,0.00010618]
[1732522539347,0.01022988,98243.0,98242.0,0.00010618]
[1732522539658,0.050835,98244.0,98242.0,0.00010618]
[1732522539851,0.12183388,98243.0,98242.0,0.00010618]
[1732522540053,0.01993883,98243.0,98242.0,0.00010618]
[1732522542457,0.14174396,98243.0,98242.0,0.00010618]
[1732522543058,0.01024863,98243.0,98242.0,0.30546618]
[1732522543250,0.09134395,98248.0,98247.0,0.050833]
[1732522543452,0.09134395,98251.0,98247.0,0.3608]
[1732522543761,0.09134395,98257.0,98256.0,0.050829]
[1732522544252,0.13776,98259.0,98256.0,0.050829]
[1732522544446,0.0913296,98257.0,98256.0,0.050829]
[1732522544762,0.13776,98259.0,98256.0,0.050829]
[1732522545150,0.13776,98259.0,98252.0,0.0329]
[1732522545349,0.09132944,98256.0,98252.0,0.0329]
[1732522545848,0.09132944,98255.0,98252.0,0.0329]
[1732522546246,0.13776,98254.0,98253.0,0.05083]
[1732522546455,0.22908944,98255.0,98253.0,0.05083]
[1732522547454,0.13776,98255.0,98253.0,0.05083]
[1732522547851,0.22908944,98255.0,98253.0,0.05083]
[1732522548958,0.09132944,98256.0,98255.0,0.050829]
[1732522549353,0.09132944,98256.0,98252.0,0.0329]
[1732522549354,0.05083,98253.0,98252.0,0.0329]
[1732522551256,0.05083,98253.0,98249.0,0.1820627]
[1732522551458,0.050832,98249.0,98244.0,0.0322685]
[1732522551656,0.09134532,98246.0,98242.0,0.00010618]
[1732522551861,0.09134532,98245.0,98244.0,0.050835]
[1732522554062,0.09134532,98246.0,98244.0,0.050835]
[1732522554566,0.13768,98249.0,98244.0,0.050835]
[1732522554567,0.09134532,98245.0,98244.0,0.050835]
[1732522555366,0.11145721,98245.0,98244.0,0.050835]
[1732522556460,0.1016002,98245.0,98244.0,0.050835]
[1732522556769,0.11140326,98245.0,98244.0,0.050835]
[1732522557761,0.02005794,98245.0,98244.0,0.050835]
[1732522557961,0.31031713,98249.0,98244.0,0.050835]
[1732522558263,0.050835,98244.0,98242.0,0.03265278]
[1732522558565,0.12180513,98243.0,98242.0,0.03265278]
[1732522558860,0.17264013,98244.0,98242.0,0.03265278]
[1732522559365,0.00976459,98243.0,98242.0,0.03265278]
[1732522560361,0.00965163,98243.0,98242.0,0.08348778]
[1732522561053,0.3608,98245.0,98242.0,0.08348778]
[1732522561054,0.48260513,98245.0,98242.0,0.08348778]
[1732522564158,0.12180513,98244.0,98242.0,0.08348778]
[1732522566463,0.48260513,98245.0,98242.0,0.08348778]
[1732522567065,0.17268598,98243.0,98242.0,0.03265278]
[1732522567270,0.188515,98243.0,98242.0,0.03265278]
[1732522568256,0.13768,98243.0,98242.0,0.03265278]
[1732522572771,0.22907097,98243.0,98242.0,0.03265278]
[1732522572963,0.13768,98243.0,98242.0,0.03265278]
[1732522573160,0.22907098,98243.0,98242.0,0.03265278]
[1732522573773,0.22907026,98243.0,98242.0,0.03265278]
[1732522574169,0.13768,98243.0,98242.0,0.03265278]
[1732522575369,0.13768,98243.0,98242.0,0.21480992]
[1732522575569,0.12184927,98247.0,98243.0,0.050835]
[1732522575772,0.12184927,98247.0,98245.0,0.050834]
[1732522575978,0.09140073,98247.0,98246.0,0.3608]
[1732522576274,0.050822,98270.0,98246.0,0.3608]
[1732522576275,0.09140073,98255.0,98246.0,0.72846]
[1732522576478,0.0913957,98254.0,98253.0,0.18210326]
[1732522576671,0.0913957,98255.0,98250.0,0.24278121]
[1732522576873,0.0913957,98255.0,98254.0,0.05083]
[1732522577077,0.13768,98261.0,98251.0,0.24278121]
[1732522577078,0.12187557,98259.0,98251.0,0.24278121]
[1732522577270,0.12187557,98259.0,98257.0,0.050828]
[1732522578676,0.12187557,98259.0,98257.0,0.23288272]
[1732522578879,0.12187557,98262.0,98258.0,0.3608]
[1732522579178,0.12187557,98264.0,98263.0,0.050825]
[1732522579377,0.09138362,98265.0,98261.0,0.24278121]